[Event "Early-Titled-Tuesday-Blitz-June-18-2024"]
[Site "Chess.com"]
[Date "2024.06.18"]
[Round "6"]
[White "Austen48"]
[Black "elamier"]
[Result "1-0"]
[WhiteElo "2311"]
[BlackElo "2460"]
[TimeControl "180+1"]
[EndTime "9:09:15 PDT"]
[Termination "Austen48 won on time"]

1. d4 {[%clk 0:02:59]} 1... Nf6 {[%clk 0:02:59.4]} 2. c4 {[%clk 0:02:58.6]} 2...
e6 {[%clk 0:02:59.3]} 3. Nc3 {[%clk 0:02:58]} 3... Bb4 {[%clk 0:02:59]} 4. Qc2
{[%clk 0:02:56.8]} 4... O-O {[%clk 0:02:56.7]} 5. Nf3 {[%clk 0:02:48.9]} 5... c5
{[%clk 0:02:48.1]} 6. dxc5 {[%clk 0:02:46]} 6... Nc6 {[%clk 0:02:37.2]} 7. a3
{[%clk 0:02:45]} 7... Bxc5 {[%clk 0:02:37.2]} 8. e3 {[%clk 0:02:42.7]} 8... b6
{[%clk 0:02:20.4]} 9. Bd3 {[%clk 0:02:36]} 9... Bb7 {[%clk 0:02:18]} 10. O-O
{[%clk 0:02:35.2]} 10... Rc8 {[%clk 0:02:16.8]} 11. Qe2 {[%clk 0:02:31.9]} 11...
d5 {[%clk 0:02:12.4]} 12. b4 {[%clk 0:02:29.6]} 12... Bd6 {[%clk 0:01:56.4]} 13.
cxd5 {[%clk 0:02:26.6]} 13... exd5 {[%clk 0:01:56]} 14. Nb5 {[%clk 0:02:21.6]}
14... Bb8 {[%clk 0:01:55.7]} 15. Bb2 {[%clk 0:02:19.9]} 15... Qe7 {[%clk
0:01:51.2]} 16. Bf5 {[%clk 0:02:09.1]} 16... Rcd8 {[%clk 0:01:47.5]} 17. Rfd1
{[%clk 0:02:00.5]} 17... Rfe8 {[%clk 0:01:31.1]} 18. Rac1 {[%clk 0:01:51.8]}
18... a6 {[%clk 0:01:28.1]} 19. Nbd4 {[%clk 0:01:50.7]} 19... Ne5 {[%clk
0:01:25.5]} 20. Bb1 {[%clk 0:01:45.1]} 20... Nc4 {[%clk 0:01:05.6]} 21. Nf5
{[%clk 0:01:33.1]} 21... Qe6 {[%clk 0:00:47.3]} 22. Ng5 {[%clk 0:01:19.6]} 22...
Qc6 {[%clk 0:00:39]} 23. Nxg7 {[%clk 0:00:56.8]} 23... Kxg7 {[%clk 0:00:34]} 24.
Qg4 {[%clk 0:00:40.6]} 24... Rg8 {[%clk 0:00:12]} 25. Ne6+ {[%clk 0:00:28.3]}
25... Kh6 {[%clk 0:00:12.7]} 26. Qh4+ {[%clk 0:00:20]} 26... Nh5 {[%clk
0:00:13.3]} 27. Nxd8 {[%clk 0:00:19.6]} 27... Qd7 {[%clk 0:00:04.6]} 28. Nxb7
{[%clk 0:00:18.3]} 28... Nxb2 {[%clk 0:00:03.8]} 29. Rd4 {[%clk 0:00:11.4]}
29... Qxb7 {[%clk 0:00:03.4]} 30. Rf4 {[%clk 0:00:10]} 30... f5 {[%clk
0:00:02.1]} 31. Rxf5 {[%clk 0:00:09.6]} 31... Kg7 {[%clk 0:00:01.5]} 32. Qxh5
{[%clk 0:00:09.2]} 32... Kh8 {[%clk 0:00:01.4]} 33. Rf7 {[%clk 0:00:08]} 33...
Rg7 {[%clk 0:00:01.5]} 34. Rxb7 {[%clk 0:00:05.8]} 34... Rxb7 {[%clk 0:00:01]}
35. Rc8+ {[%clk 0:00:06.3]} 1-0

[Event "Early-Titled-Tuesday-Blitz-June-18-2024"]
[Site "Chess.com"]
[Date "2024.06.18"]
[Round "6"]
[White "AndrewMaco"]
[Black "Fh2411"]
[Result "1-0"]
[WhiteElo "2698"]
[BlackElo "2554"]
[TimeControl "180+1"]
[EndTime "9:09:16 PDT"]
[Termination "AndrewMaco won on time"]

1. e4 {[%clk 0:03:00.9]} 1... c6 {[%clk 0:02:59.6]} 2. d4 {[%clk 0:02:58.3]}
2... d5 {[%clk 0:03:00.1]} 3. e5 {[%clk 0:02:58.7]} 3... Bf5 {[%clk 0:02:59.9]}
4. Nf3 {[%clk 0:02:58.4]} 4... e6 {[%clk 0:03:00.5]} 5. Be2 {[%clk 0:02:58.2]}
5... Nd7 {[%clk 0:03:01.1]} 6. O-O {[%clk 0:02:57.6]} 6... Ne7 {[%clk
0:03:01.7]} 7. Nh4 {[%clk 0:02:57.4]} 7... Bg6 {[%clk 0:02:40]} 8. Nd2 {[%clk
0:02:56]} 8... Nf5 {[%clk 0:02:30.6]} 9. Nxg6 {[%clk 0:02:55.9]} 9... hxg6
{[%clk 0:02:31.5]} 10. Nf3 {[%clk 0:02:52.6]} 10... Be7 {[%clk 0:02:31.6]} 11.
c3 {[%clk 0:02:49.3]} 11... g5 {[%clk 0:02:29.7]} 12. h3 {[%clk 0:02:42.4]}
12... Nf8 {[%clk 0:02:15.4]} 13. Bd3 {[%clk 0:02:38.6]} 13... Ng6 {[%clk
0:02:13.1]} 14. b4 {[%clk 0:02:28.7]} 14... a6 {[%clk 0:01:48.4]} 15. a4 {[%clk
0:02:26.4]} 15... Ngh4 {[%clk 0:01:38.2]} 16. Nh2 {[%clk 0:02:15.5]} 16... Qd7
{[%clk 0:01:21.6]} 17. Qc2 {[%clk 0:02:08.7]} 17... f6 {[%clk 0:01:17.4]} 18.
Ng4 {[%clk 0:02:05.1]} 18... Nh6 {[%clk 0:01:13.9]} 19. g3 {[%clk 0:01:53.8]}
19... N4f5 {[%clk 0:01:11.9]} 20. Kg2 {[%clk 0:01:47.9]} 20... a5 {[%clk
0:00:53.4]} 21. b5 {[%clk 0:01:41.9]} 21... c5 {[%clk 0:00:49.6]} 22. exf6
{[%clk 0:01:31.1]} 22... gxf6 {[%clk 0:00:48.8]} 23. dxc5 {[%clk 0:01:31.5]}
23... Nxg4 {[%clk 0:00:44.2]} 24. hxg4 {[%clk 0:01:30.1]} 24... Nh6 {[%clk
0:00:44.7]} 25. c6 {[%clk 0:01:19.1]} 25... bxc6 {[%clk 0:00:37.8]} 26. bxc6
{[%clk 0:01:20]} 26... Qc7 {[%clk 0:00:35.2]} 27. Rh1 {[%clk 0:01:19.5]} 27...
Kf7 {[%clk 0:00:32.7]} 28. c4 {[%clk 0:00:45.2]} 28... d4 {[%clk 0:00:23.5]} 29.
Qe2 {[%clk 0:00:41.2]} 29... Rae8 {[%clk 0:00:09.1]} 30. Be4 {[%clk 0:00:37.2]}
30... Qe5 {[%clk 0:00:03.7]} 31. Bd2 {[%clk 0:00:34.6]} 31... Kg7 {[%clk
0:00:02.5]} 32. Qf3 {[%clk 0:00:33.9]} 32... f5 {[%clk 0:00:02.6]} 33. gxf5
{[%clk 0:00:32.2]} 33... exf5 {[%clk 0:00:03.2]} 34. Bd5 {[%clk 0:00:31]} 34...
Ng4 {[%clk 0:00:03.4]} 35. Rae1 {[%clk 0:00:26.6]} 35... Qd6 {[%clk 0:00:02.2]}
36. Re6 {[%clk 0:00:23.5]} 36... Rxh1 {[%clk 0:00:02.9]} 37. Kxh1 {[%clk
0:00:23.8]} 37... Rh8+ {[%clk 0:00:02.9]} 38. Kg1 {[%clk 0:00:23.8]} 38... Qb8
{[%clk 0:00:01.6]} 39. Rxe7+ {[%clk 0:00:20.9]} 39... Kf8 {[%clk 0:00:01.9]} 40.
Re1 {[%clk 0:00:20.3]} 1-0

[Event "Early-Titled-Tuesday-Blitz-June-18-2024"]
[Site "Chess.com"]
[Date "2024.06.18"]
[Round "6"]
[White "Journey_to_GrandMaster_YT"]
[Black "Casper"]
[Result "0-1"]
[WhiteElo "2632"]
[BlackElo "2488"]
[TimeControl "180+1"]
[EndTime "9:09:17 PDT"]
[Termination "Casper won on time"]

1. d4 {[%clk 0:03:00.9]} 1... d5 {[%clk 0:02:59.6]} 2. c4 {[%clk 0:03:00.7]}
2... dxc4 {[%clk 0:02:58.8]} 3. e4 {[%clk 0:02:59.9]} 3... Nc6 {[%clk
0:02:56.6]} 4. Be3 {[%clk 0:02:54.4]} 4... e5 {[%clk 0:02:55.3]} 5. d5 {[%clk
0:02:51]} 5... Nce7 {[%clk 0:02:51.4]} 6. Bxc4 {[%clk 0:02:44.6]} 6... Nf6
{[%clk 0:02:51.9]} 7. Nc3 {[%clk 0:02:43.8]} 7... Ng6 {[%clk 0:02:51.9]} 8. h3
{[%clk 0:02:38.8]} 8... a6 {[%clk 0:02:50.3]} 9. a4 {[%clk 0:02:36.2]} 9... Bb4
{[%clk 0:02:49.7]} 10. Qc2 {[%clk 0:02:31.7]} 10... O-O {[%clk 0:02:47.5]} 11.
Ne2 {[%clk 0:02:31.3]} 11... Nh5 {[%clk 0:02:45.9]} 12. O-O {[%clk 0:02:22.8]}
12... Kh8 {[%clk 0:02:45.5]} 13. Rad1 {[%clk 0:02:15.4]} 13... f5 {[%clk
0:02:45.7]} 14. exf5 {[%clk 0:02:12.8]} 14... Bxf5 {[%clk 0:02:45.7]} 15. Bd3
{[%clk 0:02:04.6]} 15... Bxd3 {[%clk 0:02:43.3]} 16. Qxd3 {[%clk 0:02:03.4]}
16... Nhf4 {[%clk 0:02:44]} 17. Nxf4 {[%clk 0:01:48.3]} 17... exf4 {[%clk
0:02:44.9]} 18. Bd4 {[%clk 0:01:46.9]} 18... Nh4 {[%clk 0:02:22]} 19. Ne4 {[%clk
0:01:35]} 19... Bd6 {[%clk 0:02:03.9]} 20. Rfe1 {[%clk 0:01:19.5]} 20... Qe8
{[%clk 0:02:03.7]} 21. Nxd6 {[%clk 0:01:12.4]} 21... Qh5 {[%clk 0:02:03.9]} 22.
Re5 {[%clk 0:00:56.8]} 22... Qh6 {[%clk 0:01:56.4]} 23. Nf5 {[%clk 0:00:50.7]}
23... Rxf5 {[%clk 0:01:52.4]} 24. Rxf5 {[%clk 0:00:45.6]} 24... Qg6 {[%clk
0:01:53]} 25. g4 {[%clk 0:00:31.9]} 25... fxg3 {[%clk 0:01:47]} 26. Qxg3 {[%clk
0:00:15.1]} 26... Qxg3+ {[%clk 0:01:08.2]} 27. fxg3 {[%clk 0:00:14]} 27... Nxf5
{[%clk 0:01:09.1]} 28. Be5 {[%clk 0:00:14.1]} 28... Nd6 {[%clk 0:01:09.5]} 29.
Rc1 {[%clk 0:00:13.7]} 29... Re8 {[%clk 0:00:54.7]} 30. Bxd6 {[%clk 0:00:08.6]}
30... cxd6 {[%clk 0:00:55.6]} 31. Rc7 {[%clk 0:00:08.7]} 31... Kg8 {[%clk
0:00:56.1]} 32. Rxb7 {[%clk 0:00:08.8]} 32... Re5 {[%clk 0:00:55.3]} 33. Rb6
{[%clk 0:00:07.8]} 33... Rxd5 {[%clk 0:00:53.8]} 34. Rxa6 {[%clk 0:00:08.3]}
34... Rd1+ {[%clk 0:00:52.8]} 35. Kf2 {[%clk 0:00:08.9]} 35... Rd2+ {[%clk
0:00:53.7]} 36. Kf3 {[%clk 0:00:09.5]} 36... Rxb2 {[%clk 0:00:54.4]} 37. Rxd6
{[%clk 0:00:09.8]} 37... Ra2 {[%clk 0:00:54.6]} 38. Rd4 {[%clk 0:00:07.2]} 38...
Kf7 {[%clk 0:00:54.3]} 39. Ke4 {[%clk 0:00:07]} 39... Ke6 {[%clk 0:00:53.5]} 40.
Kd3 {[%clk 0:00:05.6]} 40... Ra3+ {[%clk 0:00:53.1]} 41. Kc2 {[%clk 0:00:05.5]}
41... Rxg3 {[%clk 0:00:51.2]} 42. Rd3 {[%clk 0:00:06.1]} 42... Rxd3 {[%clk
0:00:31.1]} 43. Kxd3 {[%clk 0:00:07]} 43... Kd5 {[%clk 0:00:31.3]} 44. Ke3
{[%clk 0:00:07.4]} 44... g5 {[%clk 0:00:22]} 0-1

[Event "Early-Titled-Tuesday-Blitz-June-18-2024"]
[Site "Chess.com"]
[Date "2024.06.18"]
[Round "6"]
[White "slidingknight2775"]
[Black "rollercoaster29"]
[Result "1-0"]
[WhiteElo "2690"]
[BlackElo "2513"]
[TimeControl "180+1"]
[EndTime "9:09:19 PDT"]
[Termination "slidingknight2775 won by resignation"]

1. d4 {[%clk 0:03:00.9]} 1... Nf6 {[%clk 0:02:56.9]} 2. c4 {[%clk 0:03:01.1]}
2... g6 {[%clk 0:02:57.1]} 3. Nc3 {[%clk 0:03:01.4]} 3... d5 {[%clk 0:02:56.8]}
4. Nf3 {[%clk 0:03:00.7]} 4... Bg7 {[%clk 0:02:55.6]} 5. cxd5 {[%clk 0:03:01.2]}
5... Nxd5 {[%clk 0:02:56.5]} 6. e4 {[%clk 0:03:01.8]} 6... Nxc3 {[%clk
0:02:56.8]} 7. bxc3 {[%clk 0:03:02.7]} 7... c5 {[%clk 0:02:57.2]} 8. h3 {[%clk
0:03:02]} 8... Nc6 {[%clk 0:02:54.7]} 9. Be3 {[%clk 0:03:02.1]} 9... Qa5 {[%clk
0:02:46.7]} 10. Bd2 {[%clk 0:03:01]} 10... O-O {[%clk 0:02:34.2]} 11. Be2 {[%clk
0:02:59.8]} 11... Rd8 {[%clk 0:02:27.6]} 12. O-O {[%clk 0:02:56]} 12... Qc7
{[%clk 0:02:15.8]} 13. d5 {[%clk 0:02:34.6]} 13... Na5 {[%clk 0:02:15.4]} 14. c4
{[%clk 0:02:14.1]} 14... b5 {[%clk 0:02:03.5]} 15. cxb5 {[%clk 0:02:01.2]} 15...
e6 {[%clk 0:02:03.2]} 16. Rc1 {[%clk 0:01:57]} 16... Nb7 {[%clk 0:02:01.9]} 17.
Bg5 {[%clk 0:01:38.6]} 17... f6 {[%clk 0:01:38.1]} 18. Be3 {[%clk 0:01:38.3]}
18... exd5 {[%clk 0:01:37.7]} 19. exd5 {[%clk 0:01:38.6]} 19... Be6 {[%clk
0:01:36.7]} 20. Qc2 {[%clk 0:00:47.5]} 20... Bxd5 {[%clk 0:01:33.1]} 21. Rfd1
{[%clk 0:00:48.1]} 21... Bf7 {[%clk 0:01:26.8]} 22. Bc4 {[%clk 0:00:48.1]} 22...
Rac8 {[%clk 0:01:06.3]} 23. Rxd8+ {[%clk 0:00:43.6]} 23... Nxd8 {[%clk
0:01:06.1]} 24. Bxf7+ {[%clk 0:00:41.6]} 24... Qxf7 {[%clk 0:01:05.6]} 25. Qc4
{[%clk 0:00:38.6]} 25... Qxc4 {[%clk 0:01:00]} 26. Rxc4 {[%clk 0:00:39.5]} 26...
Bf8 {[%clk 0:00:59.7]} 27. a4 {[%clk 0:00:18.4]} 27... Nb7 {[%clk 0:00:58.6]}
28. Nd2 {[%clk 0:00:19]} 28... Na5 {[%clk 0:00:57.3]} 29. Rc2 {[%clk 0:00:19.6]}
29... Kf7 {[%clk 0:00:53.2]} 30. Ne4 {[%clk 0:00:19.4]} 30... Nb7 {[%clk
0:00:49.4]} 31. f3 {[%clk 0:00:16.8]} 31... h6 {[%clk 0:00:44.1]} 32. Kf2 {[%clk
0:00:16.7]} 32... f5 {[%clk 0:00:43.5]} 33. Nd2 {[%clk 0:00:16.3]} 33... Ke6
{[%clk 0:00:42.8]} 34. Nc4 {[%clk 0:00:16.4]} 34... g5 {[%clk 0:00:26.9]} 35. f4
{[%clk 0:00:14.2]} 35... gxf4 {[%clk 0:00:22.3]} 36. Bxf4 {[%clk 0:00:15.1]}
36... h5 {[%clk 0:00:23]} 37. g3 {[%clk 0:00:13.6]} 37... Nd6 {[%clk 0:00:20.6]}
38. Nxd6 {[%clk 0:00:09.3]} 38... Bxd6 {[%clk 0:00:18.7]} 39. Re2+ {[%clk
0:00:09.9]} 39... Kd7 {[%clk 0:00:16.8]} 40. Rd2 {[%clk 0:00:10]} 40... c4
{[%clk 0:00:16.9]} 41. Rxd6+ {[%clk 0:00:10.2]} 41... Ke7 {[%clk 0:00:16.9]} 42.
Rc6 {[%clk 0:00:10.5]} 1-0

[Event "Early-Titled-Tuesday-Blitz-June-18-2024"]
[Site "Chess.com"]
[Date "2024.06.18"]
[Round "6"]
[White "carokannlover213"]
[Black "evgchess5"]
[Result "0-1"]
[WhiteElo "2692"]
[BlackElo "2926"]
[TimeControl "180+1"]
[EndTime "9:09:22 PDT"]
[Termination "evgchess5 won by checkmate"]

1. e4 {[%clk 0:03:00.9]} 1... c5 {[%clk 0:02:39.8]} 2. Nf3 {[%clk 0:03:01]} 2...
e6 {[%clk 0:02:39.3]} 3. d4 {[%clk 0:03:01.1]} 3... cxd4 {[%clk 0:02:39.9]} 4.
Nxd4 {[%clk 0:03:01.8]} 4... Nc6 {[%clk 0:02:39.9]} 5. Nc3 {[%clk 0:03:02.3]}
5... a6 {[%clk 0:02:40.2]} 6. Be3 {[%clk 0:03:01.9]} 6... Nf6 {[%clk 0:02:39.8]}
7. f4 {[%clk 0:03:01.1]} 7... Bb4 {[%clk 0:02:38.6]} 8. Nxc6 {[%clk 0:02:51.5]}
8... bxc6 {[%clk 0:02:37.4]} 9. Qd4 {[%clk 0:02:48.4]} 9... c5 {[%clk
0:02:35.1]} 10. Qd3 {[%clk 0:02:40.8]} 10... d5 {[%clk 0:02:33.7]} 11. exd5
{[%clk 0:02:31.4]} 11... exd5 {[%clk 0:02:31.2]} 12. O-O-O {[%clk 0:01:56.4]}
12... d4 {[%clk 0:02:30.4]} 13. a3 {[%clk 0:01:38.1]} 13... Ba5 {[%clk
0:02:29.4]} 14. b4 {[%clk 0:00:38.5]} 14... Bc7 {[%clk 0:02:17.7]} 15. Bf2
{[%clk 0:00:22.7]} 15... O-O {[%clk 0:01:54.5]} 16. Ne2 {[%clk 0:00:17.6]} 16...
Qe7 {[%clk 0:01:11.4]} 17. bxc5 {[%clk 0:00:16]} 17... Rb8 {[%clk 0:01:03.2]}
18. Bxd4 {[%clk 0:00:15.1]} 18... Bb7 {[%clk 0:00:54.6]} 19. Qe3 {[%clk
0:00:12.4]} 19... Ne4 {[%clk 0:00:44.1]} 20. Nc3 {[%clk 0:00:10.2]} 20... Qh4
{[%clk 0:00:22.6]} 21. g3 {[%clk 0:00:07.8]} 21... Nxg3 {[%clk 0:00:22.7]} 22.
hxg3 {[%clk 0:00:03.2]} 22... Qxh1 {[%clk 0:00:22.6]} 23. Bxa6 {[%clk
0:00:02.6]} 23... Qh6 {[%clk 0:00:20.5]} 24. Bd3 {[%clk 0:00:02.7]} 24... Bc6
{[%clk 0:00:19.3]} 25. Qf2 {[%clk 0:00:02.3]} 25... Rfe8 {[%clk 0:00:18.9]} 26.
a4 {[%clk 0:00:02.2]} 26... Ra8 {[%clk 0:00:18.8]} 27. Bb5 {[%clk 0:00:02.2]}
27... Ba5 {[%clk 0:00:18.3]} 28. Bxc6 {[%clk 0:00:01.6]} 28... Qxc6 {[%clk
0:00:17.6]} 29. Nb5 {[%clk 0:00:02.1]} 29... Bc7 {[%clk 0:00:16.2]} 30. Nxc7
{[%clk 0:00:01.5]} 30... Qxc7 {[%clk 0:00:16.3]} 31. Qf3 {[%clk 0:00:01.4]}
31... Rxa4 {[%clk 0:00:15.3]} 32. Bc3 {[%clk 0:00:01.7]} 32... Qxc5 {[%clk
0:00:13.9]} 33. Qe2 {[%clk 0:00:01.4]} 33... Raa8 {[%clk 0:00:08.9]} 34. Qd3
{[%clk 0:00:01.2]} 34... Rec8 {[%clk 0:00:08.1]} 35. Bd4 {[%clk 0:00:01]} 35...
Qc6 {[%clk 0:00:06.5]} 36. Qd2 {[%clk 0:00:01.1]} 36... Ra2 {[%clk 0:00:03.9]}
37. Bb2 {[%clk 0:00:02]} 37... h6 {[%clk 0:00:03.8]} 38. Qd4 {[%clk 0:00:02.2]}
38... f6 {[%clk 0:00:04]} 39. f5 {[%clk 0:00:02.6]} 39... Qxc2# {[%clk
0:00:03.8]} 0-1

[Event "Early-Titled-Tuesday-Blitz-June-18-2024"]
[Site "Chess.com"]
[Date "2024.06.18"]
[Round "6"]
[White "LeoLV10"]
[Black "edgarhay012"]
[Result "0-1"]
[WhiteElo "2545"]
[BlackElo "2688"]
[TimeControl "180+1"]
[EndTime "9:09:24 PDT"]
[Termination "edgarhay012 won by checkmate"]

1. e4 {[%clk 0:03:00.9]} 1... e6 {[%clk 0:02:59.2]} 2. d4 {[%clk 0:03:01]} 2...
d5 {[%clk 0:02:59.8]} 3. e5 {[%clk 0:03:01.5]} 3... c5 {[%clk 0:02:59.9]} 4. c3
{[%clk 0:03:01.9]} 4... Qb6 {[%clk 0:03:00.5]} 5. Nf3 {[%clk 0:03:02]} 5... Nc6
{[%clk 0:03:01.1]} 6. a3 {[%clk 0:03:01.1]} 6... Nh6 {[%clk 0:03:01.5]} 7. b4
{[%clk 0:02:52.9]} 7... cxd4 {[%clk 0:03:00.9]} 8. cxd4 {[%clk 0:02:53.8]} 8...
Nf5 {[%clk 0:03:00.8]} 9. Be3 {[%clk 0:02:54.2]} 9... f6 {[%clk 0:02:59.6]} 10.
exf6 {[%clk 0:02:52.9]} 10... gxf6 {[%clk 0:02:58.7]} 11. Nc3 {[%clk 0:02:52.6]}
11... Bd7 {[%clk 0:02:54.6]} 12. Bd3 {[%clk 0:02:51.9]} 12... Nxe3 {[%clk
0:02:51.2]} 13. fxe3 {[%clk 0:02:51.9]} 13... O-O-O {[%clk 0:02:40.1]} 14. Na4
{[%clk 0:02:50.5]} 14... Qc7 {[%clk 0:02:40]} 15. Nc5 {[%clk 0:02:48.3]} 15...
Kb8 {[%clk 0:02:38.5]} 16. Rc1 {[%clk 0:02:44.3]} 16... Qd6 {[%clk 0:02:30.4]}
17. O-O {[%clk 0:02:43.1]} 17... Bh6 {[%clk 0:02:29.5]} 18. Re1 {[%clk 0:02:42]}
18... Rhg8 {[%clk 0:02:28.6]} 19. Rc2 {[%clk 0:02:39.4]} 19... e5 {[%clk
0:02:27.1]} 20. dxe5 {[%clk 0:02:32]} 20... fxe5 {[%clk 0:02:28]} 21. Bb5 {[%clk
0:02:30]} 21... Bg4 {[%clk 0:02:25.4]} 22. Nxb7 {[%clk 0:02:16.4]} 22... Kxb7
{[%clk 0:02:20.7]} 23. Rxc6 {[%clk 0:02:14.4]} 23... Qd7 {[%clk 0:02:09.1]} 24.
Rb6+ {[%clk 0:02:12.8]} 24... axb6 {[%clk 0:02:09.4]} 25. Bxd7 {[%clk 0:02:13]}
25... Rxd7 {[%clk 0:02:09.2]} 26. Qa4 {[%clk 0:02:05.3]} 26... Re7 {[%clk
0:01:49.1]} 27. Nd2 {[%clk 0:01:53.9]} 27... Bh3 {[%clk 0:01:26.8]} 28. g3
{[%clk 0:01:48.4]} 28... Rf8 {[%clk 0:01:25.6]} 29. Qb5 {[%clk 0:01:42.4]} 29...
d4 {[%clk 0:01:05.1]} 30. Nc4 {[%clk 0:01:35]} 30... Bxe3+ {[%clk 0:01:03.5]}
31. Nxe3 {[%clk 0:01:34.9]} 31... dxe3 {[%clk 0:01:03]} 32. Qd5+ {[%clk
0:01:30.7]} 32... Ka7 {[%clk 0:01:02.3]} 33. Qb5 {[%clk 0:00:51.1]} 33... Ref7
{[%clk 0:00:55.8]} 34. Qa4+ {[%clk 0:00:50.1]} 34... Kb8 {[%clk 0:00:54.5]} 35.
Qb5 {[%clk 0:00:51]} 35... Kb7 {[%clk 0:00:46.3]} 36. Qd5+ {[%clk 0:00:49.8]}
36... Ka7 {[%clk 0:00:43.9]} 37. Qb5 {[%clk 0:00:49.8]} 37... Rf2 {[%clk
0:00:20.3]} 38. Qc4 {[%clk 0:00:32.6]} 38... R8f7 {[%clk 0:00:13.3]} 39. b5
{[%clk 0:00:25.9]} 39... e2 {[%clk 0:00:12.2]} 40. Qa4+ {[%clk 0:00:18.3]} 40...
Kb8 {[%clk 0:00:11.6]} 41. Qf4 {[%clk 0:00:05.7]} 41... Rf1+ {[%clk 0:00:07.5]}
42. Rxf1 {[%clk 0:00:03.3]} 42... exf1=Q+ {[%clk 0:00:08.4]} 43. Qxf1 {[%clk
0:00:03.8]} 43... Rxf1# {[%clk 0:00:09.3]} 0-1

[Event "Early-Titled-Tuesday-Blitz-June-18-2024"]
[Site "Chess.com"]
[Date "2024.06.18"]
[Round "6"]
[White "campochess"]
[Black "sachiniranasinghe"]
[Result "0-1"]
[WhiteElo "2194"]
[BlackElo "1915"]
[TimeControl "180+1"]
[EndTime "9:09:26 PDT"]
[Termination "sachiniranasinghe won on time"]

1. e4 {[%clk 0:02:40]} 1... c5 {[%clk 0:02:59.1]} 2. b4 {[%clk 0:02:39.1]} 2...
cxb4 {[%clk 0:02:55.8]} 3. d4 {[%clk 0:02:39.1]} 3... d5 {[%clk 0:02:54.8]} 4.
exd5 {[%clk 0:02:39.1]} 4... Qxd5 {[%clk 0:02:54.3]} 5. c4 {[%clk 0:02:39]} 5...
Qe4+ {[%clk 0:02:51.6]} 6. Ne2 {[%clk 0:02:36.5]} 6... Bd7 {[%clk 0:02:41.6]} 7.
Nd2 {[%clk 0:02:36.1]} 7... Qg6 {[%clk 0:02:40.2]} 8. Nf3 {[%clk 0:02:33.5]}
8... e6 {[%clk 0:02:36.7]} 9. g3 {[%clk 0:02:32.5]} 9... Bd6 {[%clk 0:02:35.6]}
10. Bg2 {[%clk 0:02:32.2]} 10... Nc6 {[%clk 0:02:35.3]} 11. O-O {[%clk
0:02:28.9]} 11... Nge7 {[%clk 0:02:34.9]} 12. d5 {[%clk 0:02:22.1]} 12... exd5
{[%clk 0:02:33.2]} 13. cxd5 {[%clk 0:02:22]} 13... Ne5 {[%clk 0:02:31.9]} 14.
Nfd4 {[%clk 0:02:13.5]} 14... Qd3 {[%clk 0:02:28]} 15. Qxd3 {[%clk 0:01:59.7]}
15... Nxd3 {[%clk 0:02:27.3]} 16. Be3 {[%clk 0:01:59.5]} 16... O-O {[%clk
0:02:24.5]} 17. Rfd1 {[%clk 0:01:57.9]} 17... Ne5 {[%clk 0:02:22.1]} 18. h3
{[%clk 0:01:55.3]} 18... Nc4 {[%clk 0:02:21.3]} 19. Bf4 {[%clk 0:01:50.3]} 19...
Bxf4 {[%clk 0:02:16.8]} 20. Nxf4 {[%clk 0:01:50.1]} 20... Nd6 {[%clk 0:02:13.1]}
21. Nd3 {[%clk 0:01:43.2]} 21... a5 {[%clk 0:02:11]} 22. Ne5 {[%clk 0:01:42.1]}
22... Ba4 {[%clk 0:02:07.5]} 23. Re1 {[%clk 0:01:38.3]} 23... Nef5 {[%clk
0:02:02.7]} 24. Ndf3 {[%clk 0:01:35.8]} 24... f6 {[%clk 0:01:58.7]} 25. Nd3
{[%clk 0:01:30.7]} 25... Rac8 {[%clk 0:01:47.1]} 26. Nf4 {[%clk 0:01:29.4]}
26... Bd7 {[%clk 0:01:43.2]} 27. g4 {[%clk 0:01:24]} 27... Nh6 {[%clk 0:01:42]}
28. Nd4 {[%clk 0:01:21.2]} 28... Rfe8 {[%clk 0:01:36.5]} 29. Nfe6 {[%clk
0:01:19.9]} 29... Nhf7 {[%clk 0:01:34.6]} 30. Nb3 {[%clk 0:00:58.6]} 30... b6
{[%clk 0:01:30]} 31. Nbd4 {[%clk 0:00:51.6]} 31... Ne5 {[%clk 0:01:27.3]} 32.
Rad1 {[%clk 0:00:45]} 32... Ba4 {[%clk 0:01:12.9]} 33. Rd2 {[%clk 0:00:41.9]}
33... Ndc4 {[%clk 0:01:12.1]} 34. Rde2 {[%clk 0:00:40.8]} 34... Nd3 {[%clk
0:01:10.1]} 35. Rb1 {[%clk 0:00:35.9]} 35... Na3 {[%clk 0:01:04.4]} 36. Be4
{[%clk 0:00:31.9]} 36... Nxb1 {[%clk 0:00:57.4]} 37. Bxd3 {[%clk 0:00:30]} 37...
Nc3 {[%clk 0:00:57.6]} 38. Rd2 {[%clk 0:00:23]} 38... Nxd5 {[%clk 0:00:57.5]}
39. Bf5 {[%clk 0:00:19.8]} 39... Rc1+ {[%clk 0:00:55.8]} 40. Kh2 {[%clk
0:00:19.7]} 40... Nc3 {[%clk 0:00:54.9]} 41. Nc7 {[%clk 0:00:17.9]} 41... Rd8
{[%clk 0:00:53.1]} 42. Be6+ {[%clk 0:00:15.8]} 42... Kh8 {[%clk 0:00:53]} 43. f4
{[%clk 0:00:05.9]} 43... Rd1 {[%clk 0:00:52.6]} 44. Rxd1 {[%clk 0:00:04.9]}
44... Bxd1 {[%clk 0:00:51.3]} 45. Nf5 {[%clk 0:00:04]} 45... Rd2+ {[%clk
0:00:50]} 46. Kg3 {[%clk 0:00:02.6]} 46... Rxa2 {[%clk 0:00:49.6]} 47. Ne3
{[%clk 0:00:02.3]} 47... Re2 {[%clk 0:00:45.5]} 48. Nc4 {[%clk 0:00:01]} 48...
b3 {[%clk 0:00:42.3]} 0-1